fUSD/lending_fUSD_20260224
["ID","MTS","AMOUNT","RATE_DAILY","PERIOD"]
[406553728,1771937443290,-500.0,0.00013698,2]
[406553729,1771937443300,-500.0,0.00013698,2]
[406553730,1771937443310,-500.0,0.00013698,2]
[406553731,1771937443319,-500.0,0.00013698,2]
[406553732,1771937443329,-500.0,0.00013698,2]
[406553733,1771937443338,-510.28250517,0.00013698,2]
[406553734,1771937443347,-523.24,0.00013698,2]
[406553735,1771937443357,-523.24,0.00013698,2]
[406553736,1771937443366,-523.24,0.00013698,2]
[406553737,1771937443375,-523.24,0.00013698,2]
[406553738,1771937443384,-523.24,0.00013698,2]
[406553739,1771937443393,-523.24,0.00013698,2]
[406553740,1771937443403,-523.24,0.00013698,2]
[406553741,1771937443412,-523.24,0.00013698,2]
[406553742,1771937443421,-523.24,0.00013698,2]
[406553743,1771937443430,-523.24,0.00013698,2]
[406553744,1771937443442,-523.24,0.00013698,2]
[406553745,1771937443452,-523.24,0.00013698,2]
[406553746,1771937443462,-523.24,0.00013698,2]
[406553747,1771937443471,-523.24,0.00013698,2]
[406553748,1771937443481,-523.24,0.00013698,2]
[406553749,1771937443490,-523.24,0.00013698,2]
[406553750,1771937443499,-523.24,0.00013698,2]
[406553751,1771937443510,-523.24,0.00013698,2]
[406553752,1771937443519,-858.26,0.00013698,2]
[406553753,1771937443528,-858.26,0.00013698,2]
[406553754,1771937443537,-858.26,0.00013698,2]
[406553755,1771937443547,-858.26,0.00013698,2]
[406553756,1771937443556,-858.26,0.00013698,2]
[406553757,1771937443565,-858.26,0.00013698,2]
[406553758,1771937443574,-858.26,0.00013698,2]
[406553759,1771937443583,-858.26,0.00013698,2]
[406553760,1771937443592,-858.26,0.00013698,2]
[406553761,1771937443601,-858.26,0.00013698,2]
[406553762,1771937443611,-858.26,0.00013698,2]
[406553763,1771937443619,-858.26,0.00013698,2]
[406553764,1771937443629,-858.26,0.00013698,2]
[406553765,1771937443638,-858.26,0.00013698,2]
[406553766,1771937443648,-858.26,0.00013698,2]
[406553767,1771937443657,-858.26,0.00013698,2]
[406553768,1771937443667,-858.26,0.00013698,2]
[406553769,1771937443676,-858.26,0.00013698,2]
[406553770,1771937443686,-657.39,0.00013698,2]
[406553771,1771937443695,-657.39,0.00013698,2]
[406553772,1771937443704,-500.0,0.00013698,2]
[406553773,1771937443714,-500.0,0.00013698,2]
[406553774,1771937443724,-500.0,0.00013698,2]
[406553775,1771937443733,-500.0,0.00013698,2]
[406553776,1771937443742,-500.0,0.00013698,2]
[406553777,1771937443752,-502.16359539,0.00013698,2]
[406553778,1771937443761,-500.0,0.00013698,2]
[406553779,1771937443771,-500.0,0.00013698,2]
[406553780,1771937443780,-500.0,0.00013698,2]
[406553781,1771937443789,-500.0,0.00013698,2]
[406553782,1771937443798,-500.0,0.00013698,2]
[406553783,1771937443808,-500.0,0.00013698,2]
[406553784,1771937443817,-500.0,0.00013698,2]
[406553785,1771937443826,-500.0,0.00013698,2]
[406553786,1771937443835,-500.0,0.00013698,2]
[406553787,1771937443844,-500.0,0.00013698,2]
[406553788,1771937443854,-500.0,0.00013698,2]
[406553789,1771937443865,-500.0,0.00013698,2]
[406553790,1771937443874,-500.0,0.00013698,2]
[406553791,1771937443883,-500.0,0.00013698,2]
[406553792,1771937443892,-500.0,0.00013698,2]
[406553793,1771937443901,-500.0,0.00013698,2]
[406553794,1771937443910,-500.0,0.00013698,2]
[406553795,1771937443920,-500.0,0.00013698,2]
[406553796,1771937443929,-500.0,0.00013698,2]
[406553797,1771937443938,-500.0,0.00013698,2]
[406553798,1771937443947,-500.0,0.00013698,2]
[406553799,1771937443957,-500.0,0.00013698,2]
[406553800,1771937443967,-500.0,0.00013698,2]
[406553801,1771937443977,-500.0,0.00013698,2]
[406553802,1771937443986,-500.0,0.00013698,2]
[406553803,1771937443995,-500.0,0.00013698,2]
[406553804,1771937444006,-500.0,0.00013698,2]
[406553805,1771937444015,-500.0,0.00013698,2]
[406553806,1771937444025,-500.0,0.00013698,2]
[406553807,1771937444034,-500.0,0.00013698,2]
[406553808,1771937444043,-500.0,0.00013698,2]
[406553809,1771937444053,-500.0,0.00013698,2]
[406553810,1771937444063,-425.41241493,0.00013698,2]
[406553811,1771937444072,-500.0,0.00013698,2]
[406553812,1771937444081,-500.0,0.00013698,2]
[406553813,1771937444091,-500.0,0.00013698,2]
[406553814,1771937444100,-500.0,0.00013698,2]
[406553815,1771937444109,-500.0,0.00013698,2]
[406553816,1771937444118,-500.0,0.00013698,2]
[406553817,1771937444127,-500.0,0.00013698,2]
[406553818,1771937444137,-500.0,0.00013698,2]
[406553819,1771937444146,-500.0,0.00013698,2]
[406553820,1771937444155,-500.0,0.00013698,2]
[406553821,1771937444164,-500.0,0.00013698,2]
[406553822,1771937444174,-332.48969422,0.00013698,2]
[406553823,1771937444183,-1423.69,0.00013698,2]
[406553824,1771937444193,-1423.69,0.00013698,2]
[406553825,1771937444202,-691.28,0.00013698,2]
[406553826,1771937444211,-691.28,0.00013698,2]
[406553827,1771937444221,-691.28,0.00013698,2]
[406553828,1771937444230,-691.28,0.00013698,2]
[406553829,1771937444239,-691.28,0.00013698,2]
[406553830,1771937444249,-691.28,0.00013698,2]
[406553831,1771937444258,-691.28,0.00013698,2]
[406553832,1771937444267,-691.28,0.00013698,2]
[406553833,1771937444277,-691.28,0.00013698,2]
[406553834,1771937444287,-691.28,0.00013698,2]
[406553835,1771937444296,-691.28,0.00013698,2]
[406553836,1771937444305,-691.28,0.00013698,2]
[406553837,1771937444319,-691.28,0.00013698,2]
[406553838,1771937444328,-691.28,0.00013698,2]
[406553839,1771937444337,-691.28,0.00013698,2]
[406553840,1771937444346,-691.28,0.00013698,2]
[406553841,1771937444355,-691.28,0.00013698,2]
[406553842,1771937444364,-691.28,0.00013698,2]
[406553843,1771937444374,-691.28,0.00013698,2]
[406553844,1771937444383,-691.28,0.00013698,2]
[406553845,1771937444392,-691.28,0.00013698,2]
[406553846,1771937444401,-691.28,0.00013698,2]
[406553847,1771937444410,-691.28,0.00013698,2]
[406553848,1771937444419,-691.30338985,0.00013698,2]
[406553849,1771937444429,-500.0,0.00013698,2]
[406553850,1771937444445,-500.0,0.00013698,2]
[406553851,1771937444461,-500.0,0.00013698,2]
[406553852,1771937444470,-500.0,0.00013698,2]
[406553853,1771937444479,-500.0,0.00013698,2]
[406553854,1771937444488,-500.0,0.00013698,2]
[406553855,1771937444498,-500.0,0.00013698,2]
[406553856,1771937444507,-500.0,0.00013698,2]
[406553857,1771937444516,-500.0,0.00013698,2]
[406553858,1771937444525,-500.0,0.00013698,2]
[406553859,1771937444534,-395.88818611,0.00013698,2]
[406553860,1771937444543,-512.1,0.00013698,2]
[406553861,1771937444553,-512.1,0.00013698,2]
[406553862,1771937444562,-512.1,0.00013698,2]
[406553863,1771937444571,-512.1,0.00013698,2]
[406553864,1771937444580,-512.1,0.00013698,2]
[406553865,1771937444589,-512.1,0.00013698,2]
[406553866,1771937444598,-512.1,0.00013698,2]
[406553867,1771937444607,-512.1,0.00013698,2]
[406553868,1771937444616,-512.1,0.00013698,2]
[406553869,1771937444625,-512.1,0.00013698,2]
[406553870,1771937444635,-512.1,0.00013698,2]
[406553871,1771937444644,-512.1,0.00013698,2]
[406553872,1771937444654,-512.1,0.00013698,2]
[406553873,1771937444663,-512.1,0.00013698,2]
[406553874,1771937444673,-512.1,0.00013698,2]
[406553875,1771937444683,-512.1,0.00013698,2]
[406553876,1771937444692,-512.1,0.00013698,2]
[406553877,1771937444701,-512.1,0.00013698,2]
[406553878,1771937444710,-512.1,0.00013698,2]
[406553879,1771937444719,-512.1,0.00013698,2]
[406553880,1771937444728,-512.1,0.00013698,2]
[406553881,1771937444737,-512.1,0.00013698,2]
[406553882,1771937444746,-512.1,0.00013698,2]
[406553883,1771937444757,-512.33,0.00013698,2]
[406553884,1771937444767,-200.0,0.00013699,2]
[406553885,1771937444777,-500.0,0.00013699,2]
[406553886,1771937444786,-509.0327441,0.00013699,2]
[406553887,1771937444795,-164.16786887,0.00013699,2]
[406553888,1771937444804,-162.13031906,0.00013699,2]
[406553889,1771937444813,-503.99220136,0.00013699,2]
[406553890,1771937444822,-504.16390705,0.00013699,2]
[406553891,1771937444831,-511.18624479,0.00013699,2]
[406553892,1771937444841,-500.0,0.00013699,2]
[406553893,1771937444850,-500.0,0.00013699,2]
[406553894,1771937444859,-500.0,0.00013699,2]
[406553895,1771937444868,-304.38005979,0.00013699,2]
[406553896,1771937444877,-504.28462668,0.00013699,2]
[406553897,1771937444886,-500.0,0.00013699,2]
[406553898,1771937444895,-500.0,0.00013699,2]
[406553899,1771937444904,-500.0,0.00013699,2]
[406553900,1771937444913,-503.3459029,0.00013699,2]
[406553901,1771937444923,-500.0,0.00013699,2]
[406553902,1771937444932,-500.0,0.00013699,2]
[406553903,1771937444942,-168.61283304,0.00013699,2]
[406553904,1771937444951,-500.0,0.00013699,2]
[406553905,1771937444961,-503.60394883,0.00013699,2]
[406553906,1771937444970,-500.0,0.00013699,2]
[406553907,1771937444981,-500.0,0.00013699,2]
[406553908,1771937444990,-487.94127816,0.00013699,2]
[406553909,1771937445000,-501.93759306,0.00013699,2]
[406553910,1771937445009,-500.0,0.00013699,2]
[406553911,1771937445019,-500.0,0.00013699,2]
[406553912,1771937445028,-209.6165406,0.00013699,2]
[406553913,1771937445038,-500.0,0.00013699,2]
[406553914,1771937445047,-500.0,0.00013699,2]
[406553915,1771937445057,-500.0,0.00013699,2]
[406553916,1771937445067,-501.44667058,0.00013699,2]
[406553917,1771937445076,-170.38160206,0.00013699,2]
[406553918,1771937445085,-186.88471708,0.00013699,2]
[406553919,1771937445095,-500.0,0.00013714,2]
[406553920,1771937445105,-1000.0,0.00013766,2]
[406553921,1771937445114,-767.6451532,0.00013962,2]
[406553922,1771937445124,-500.0,0.00013988,2]
[406553923,1771937445133,-150.0,0.00014064,3]
[406553924,1771937445143,-27376.86086096,0.00014108,2]
[406553925,1771937445152,-1276.82336401,0.00014168,2]
[406553926,1771937445161,-871.93707751,0.00014168,2]
[406553927,1771937445171,-1500.0,0.00014168,2]
[406553928,1771937445180,-1500.0,0.00014168,2]
[406553929,1771937445190,-1500.0,0.00014168,2]
[406553930,1771937445199,-1500.0,0.00014168,2]
[406553931,1771937445209,-527.71923747,0.00014168,2]
[406553932,1771937445218,-501.53221813,0.00014247,2]
[406553933,1771937445227,-1000.0,0.00014247,2]
[406553934,1771937445236,-1000.0,0.00014247,2]
[406553935,1771937445245,-502.25935248,0.00014247,2]
[406553936,1771937445255,-1000.0,0.00014247,2]
[406553937,1771937445264,-1028.84101903,0.00014247,2]
[406553938,1771937445273,-1000.0,0.00014247,2]
[406553939,1771937445282,-436.95947364,0.00014247,2]
[406553940,1771937445291,-1092.86766843,0.00014247,2]
[406553941,1771937445301,-1000.0,0.00014247,2]
[406553942,1771937445310,-583.60061699,0.00014247,2]
[406553943,1771937445320,-1000.0,0.00014247,2]
[406553944,1771937445329,-1000.0,0.00014247,2]
[406553945,1771937445338,-1000.0,0.00014247,2]
[406553946,1771937445347,-483.17728486,0.00014247,2]
[406553947,1771937445356,-500.0,0.00014247,2]
[406553948,1771937445366,-243.69912151,0.00014247,2]
[406553949,1771937445375,-500.0,0.00014262,2]
[406553950,1771937445385,-534.96315196,0.00014291,2]
[406553951,1771937445394,-566.19,0.00014291,2]
[406553952,1771937445404,-591.67,0.00014291,2]
[406553953,1771937445414,-917.0,0.00014291,2]
[406553954,1771937445423,-500.0,0.00014291,2]
[406553955,1771937445433,-523.24,0.00014291,2]
[406553961,1771937445446,-858.26,0.00014291,2]
[406553962,1771937445622,-500.0,0.00014291,2]
[406553964,1771937445632,-482.62263511,0.00014508,2]
[406553966,1771937445641,-482.62263508,0.00014508,2]
[406553968,1771937445650,-291.85083956,0.00014536,2]
[406553970,1771937445660,-151.0,0.00014634,2]
[406553972,1771937445670,-151.0,0.00014634,2]
[406553974,1771937445679,-151.0,0.00014634,2]
[406553976,1771937445689,-151.0,0.00014634,2]
[406553978,1771937445699,-1152.0,0.00014673,2]
[406553980,1771937445708,-4609.0,0.00014674,2]
[406553981,1771937445717,-2000.0,0.00014716,2]
[406553982,1771937445727,-503.87713345,0.00014716,2]
[406553983,1771937445736,-2000.0,0.00014716,2]
[406553984,1771937445745,-2000.0,0.00014716,2]
[406553985,1771937445756,-1252.0,0.00014769,2]
[406553986,1771937445765,-27376.86086096,0.00014772,2]
[406553987,1771937445774,-1390.05507377,0.00014795,2]
[406553988,1771937445783,-1500.0,0.00014795,2]
[406553989,1771937445793,-1500.0,0.00014795,2]
[406553990,1771937445802,-602.53164684,0.00014795,2]
[406553991,1771937445811,-1500.0,0.00014795,2]
[406553992,1771937445821,-1500.0,0.00014795,2]
[406553993,1771937445830,-193.71551848,0.00014795,2]
[406553994,1771937445839,-1500.0,0.00014795,2]
[406553995,1771937445848,-482.62263511,0.00014871,2]
[406553996,1771937445858,-176.18400318,0.000149,2]
[406553997,1771937445867,-549.94,0.00014952,2]
[406553998,1771937445876,-500.0,0.00014952,2]
[406553999,1771937445886,-5882.54936,0.00014953,7]
[406554000,1771937445896,-1000.0,0.00015017,2]
[406554001,1771937445905,-4697.42439603,0.00015091,2]
[406554002,1771937445914,-500.0,0.00015101,2]
[406554003,1771937445923,-482.62263511,0.00015234,2]
[406554004,1771937445933,-2725.04997657,0.00015245,2]
[406554005,1771937445943,-374.73958587,0.00015264,2]
[406554006,1771937445952,-2500.0,0.00015264,2]
[406554007,1771937445962,-2500.0,0.00015264,2]
[406554008,1771937445971,-503.05357398,0.00015342,2]
[406554010,1771937445981,-932.65135931,0.00015342,2]
[406554011,1771937445990,-2000.0,0.00015342,2]
[406554012,1771937446000,-1255.82806005,0.00015342,2]
[406554013,1771937446010,-454.1749961,0.00015382,2]
[406554014,1771937446019,-500.0,0.00015403,4]
[406554015,1771937446029,-27376.86086096,0.00015436,2]
[406554016,1771937446038,-778.04,0.00015504,2]
[406554017,1771937446048,-160.0,0.00015509,2]
[406554018,1771937446058,-173.87087054,0.00015509,2]
[406554019,1771937446067,-454.1749961,0.00015534,2]
[406554020,1771937446076,-482.62263511,0.00015596,2]
[406554021,1771937446086,-454.1749961,0.00015686,2]
[406554022,1771937446095,-778.04,0.00015778,2]
[406554023,1771937446105,-3000.0,0.00015812,2]
[406554024,1771937446114,-877.20909449,0.00015812,2]
[406554025,1771937446123,-1200.21212036,0.0001589,2]
[406554026,1771937446132,-461.85,0.00015894,2]
[406554027,1771937446142,-482.62263511,0.00015959,2]
[406554028,1771937446151,-500.0,0.00015991,2]
[406554029,1771937446161,-657.39,0.00015991,2]
[406554030,1771937446170,-1423.69,0.00015991,2]
[406554031,1771937446180,-500.0,0.00015991,2]
[406554032,1771937446190,-380.32235674,0.00016,2]
[406554033,1771937446199,-150.0,0.00016035,3]
[406554034,1771937446209,-461.85,0.00016053,2]
[406554035,1771937446218,-215.42973367,0.00016064,2]
[406554036,1771937446227,-27376.86086096,0.000161,2]
[406554037,1771937446237,-380.32235674,0.000161,2]
[406554038,1771937446246,-9999.99,0.00016116,2]
[406554039,1771937446256,-1613.0,0.0001614,2]
[406554040,1771937446265,-6453.0,0.00016142,2]
[406554041,1771937446275,-380.32235674,0.000162,2]
[406554042,1771937446284,-461.85,0.00016212,2]
[406554043,1771937446293,-2129.0,0.00016227,2]
[406554044,1771937446303,-482.62263511,0.00016322,2]
[406554045,1771937446312,-3500.0,0.0001636,2]
[406554046,1771937446322,-461.85,0.00016371,2]
[406554047,1771937446331,-566.19,0.00016438,2]
[406554048,1771937446340,-566.19,0.00016438,2]
[406554049,1771937446348,-566.19,0.00016438,2]
[406554050,1771937446358,-566.19,0.00016438,2]
[406554051,1771937446367,-566.42459131,0.00016438,2]
[406554052,1771937446376,-591.67,0.00016438,2]
[406554053,1771937446386,-591.67,0.00016438,2]
[406554054,1771937446396,-591.67,0.00016438,2]
[406554055,1771937446405,-591.67,0.00016438,2]
[406554056,1771937446414,-591.71706108,0.00016438,2]
[406554057,1771937446424,-917.0,0.00016438,2]
[406554058,1771937446433,-917.0,0.00016438,2]
[406554059,1771937446446,-917.0,0.00016438,2]
[406554060,1771937446455,-917.0,0.00016438,2]
[406554061,1771937446465,-917.17986232,0.00016438,2]
[406554062,1771937446474,-506.35812357,0.00016438,2]
[406554063,1771937446483,-523.24,0.00016438,2]
[406554064,1771937446493,-523.24,0.00016438,2]
[406554065,1771937446502,-523.24,0.00016438,2]
[406554066,1771937446514,-523.24,0.00016438,2]
[406554067,1771937446523,-523.29265749,0.00016438,2]
[406554068,1771937446532,-858.26,0.00016438,2]
[406554069,1771937446541,-858.26,0.00016438,2]
[406554070,1771937446551,-858.26,0.00016438,2]
[406554071,1771937446560,-858.26,0.00016438,2]
[406554072,1771937446569,-858.47544103,0.00016438,2]
[406554073,1771937446578,-500.0,0.00016438,2]
[406554074,1771937446587,-500.0,0.00016438,2]
[406554075,1771937446596,-500.0,0.00016438,2]
[406554076,1771937446605,-339.10383034,0.00016438,2]
[406554077,1771937446614,-150.73989367,0.00016438,2]
[406554078,1771937446623,-150.0,0.00016488,2]
[406554079,1771937446632,-461.85,0.0001653,2]
[406554080,1771937446641,-365.27,0.00016669,2]
[406554081,1771937446650,-482.62263511,0.00016684,2]
[406554082,1771937446659,-461.89325126,0.00016689,2]
[406554083,1771937446668,-620.70979822,0.00016908,2]
[406554084,1771937446677,-200.0,0.00016983,2]
[406554085,1771937446687,-482.62263511,0.00017047,2]
[406554086,1771937446695,-482.62263511,0.0001741,2]
[406554087,1771937446704,-150.0,0.00017416,2]
[406554088,1771937446713,-289.75484716,0.00017609,2]
[406554089,1771937446722,-500.0,0.00017708,2]
[406554090,1771937446731,-549.94,0.00017708,2]
[406554091,1771937446740,-549.94,0.00017708,2]
[406554092,1771937446750,-500.0,0.00017708,2]
[406554093,1771937446760,-500.0,0.00017708,2]
[406554094,1771937446770,-657.39,0.00017708,2]
[406554095,1771937446779,-1423.69,0.00017708,2]
[406554096,1771937446788,-500.0,0.00017708,2]
[406554097,1771937446797,-346708.5344188,0.00017709,2]
[406554098,1771937446807,-13753.9550686,0.00017709,2]
[406554099,1771937446816,-2258.0,0.00017754,2]
[406554100,1771937446826,-9035.0,0.00017756,2]
[406554101,1771937446835,-268.25985649,0.00017807,2]
[406554102,1771937446844,-657.39,0.00017807,2]
[406554103,1771937446853,-1423.69,0.00017807,2]
[406554104,1771937446863,-500.0,0.00017807,2]
[406554105,1771937446872,-779.15670384,0.00017808,2]
[406554106,1771937446881,-779.15670384,0.00017808,2]
[406554107,1771937446891,-779.15670384,0.00017808,2]
[406554108,1771937446900,-779.15670384,0.00017808,2]
[406554109,1771937446910,-779.15670384,0.00017808,2]
[406554110,1771937446919,-779.15670384,0.00017808,2]
[406554111,1771937446928,-779.15670384,0.00017808,2]
[406554112,1771937446938,-779.15670384,0.00017808,2]
[406554113,1771937446947,-779.15670384,0.00017808,2]
[406554114,1771937446957,-779.15670384,0.00017808,2]
[406554115,1771937446967,-779.15670384,0.00017808,2]
[406554116,1771937446976,-779.15670384,0.00017808,2]
[406554117,1771937446986,-779.15670384,0.00017808,2]
[406554118,1771937446995,-779.15670384,0.00017808,2]
[406554119,1771937447005,-779.15670384,0.00017808,2]
[406554120,1771937447015,-779.15670384,0.00017808,2]
[406554121,1771937447024,-779.15670384,0.00017808,2]
[406554122,1771937447034,-779.15670384,0.00017808,2]
[406554123,1771937447043,-779.15670384,0.00017808,2]
[406554124,1771937447053,-779.15670384,0.00017808,2]
[406554125,1771937447062,-779.15670384,0.00017808,2]
[406554126,1771937447072,-779.15670384,0.00017808,2]
[406554127,1771937447081,-2232.11934589,0.00017808,2]
[406554128,1771937447091,-2232.11934589,0.00017808,2]
[406554129,1771937447101,-2232.11934589,0.00017808,2]
[406554130,1771937447110,-2232.11934589,0.00017808,2]
[406554131,1771937447120,-2232.11934589,0.00017808,2]
[406554132,1771937447130,-2232.11934589,0.00017808,2]
[406554133,1771937447139,-2232.11934589,0.00017808,2]
[406554134,1771937447149,-800.0,0.00017808,2]
[406554135,1771937447158,-3301.0,0.00017836,2]
[406554136,1771937447167,-3240.0,0.00017895,2]
[406554137,1771937447177,-767.6451532,0.000179,2]
[406554138,1771937447186,-506.23472364,0.00017982,2]
[406554139,1771937447196,-519.29982816,0.0001799,2]
[406554140,1771937447205,-549.94,0.00017999,2]
[406554141,1771937447215,-549.94,0.00017999,2]
[406554142,1771937447224,-549.94,0.00017999,2]
[406554143,1771937447234,-500.0,0.00017999,2]
[406554144,1771937447243,-500.0,0.00017999,2]
[406554145,1771937447253,-500.0,0.00017999,2]
[406554146,1771937447263,-657.39,0.00017999,2]
[406554147,1771937447273,-657.39,0.00017999,2]
[406554148,1771937447282,-657.39,0.00017999,2]
[406554149,1771937447291,-1423.69,0.00017999,2]
[406554150,1771937447301,-1423.69,0.00017999,2]
[406554151,1771937447310,-1423.69,0.00017999,2]
[406554152,1771937447320,-500.0,0.00017999,2]
[406554153,1771937447329,-500.0,0.00017999,2]
[406554154,1771937447341,-500.0,0.00017999,2]
[406554155,1771937447350,-747805.26027559,0.00018,2]
[406554156,1771937447359,-200.0,0.00018,2]
[406554157,1771937447368,-150.0,0.00018005,3]
[406554158,1771937447378,-500.0,0.00018051,4]
[406554159,1771937447387,-800.0,0.00018904,2]
[406554160,1771937447396,-296.09,0.00018995,2]
[406554161,1771937447408,-350.0,0.00019,2]
[406554162,1771937447421,-3684.68319849,0.00019,2]
[406554163,1771937447435,-549.94,0.00019064,2]
[406554164,1771937447450,-787.713897,0.00019178,2]
[406554165,1771937447465,-787.713897,0.00019178,2]
[406554166,1771937447475,-787.713897,0.00019178,2]
[406554167,1771937447487,-787.713897,0.00019178,2]
[406554168,1771937447504,-3162.0,0.00019529,2]
[406554169,1771937447520,-7249.0,0.00019532,2]
[406554170,1771937447532,-150.0,0.00019568,2]
[406554171,1771937447545,-365.27,0.00019731,2]
[406554172,1771937447558,-13725.948506,0.00019938,7]
[406554173,1771937447571,-2581.38710496,0.0001995,15]
[406554174,1771937447583,-500.0,0.0001996,6]
[406554175,1771937447594,-150.0,0.00019975,3]
[406554176,1771937447605,-557.58452337,0.0002,120]
[406554177,1771937447615,-627.23211955,0.0002,120]
[406554178,1771937447625,-1948.3550072,0.0002,120]
[406554179,1771937447637,-14345.74723251,0.0002,120]
[406554180,1771937447650,-173.87087054,0.0002,7]
[406554181,1771937447661,-4697.42439603,0.00020158,2]
[406554182,1771937447672,-549.94,0.00020221,2]
[406554183,1771937447684,-657.39,0.00020221,2]
[406554184,1771937447696,-1423.69,0.00020221,2]
[406554185,1771937447709,-500.0,0.00020221,2]
[406554186,1771937447721,-222733.16690537,0.00020222,2]
[406554187,1771937448002,-123975.36751343,0.00020222,2]
[406554188,1771937448013,-657.39,0.00020367,2]
[406554189,1771937448023,-1423.69,0.00020367,2]
[406554190,1771937448034,-500.0,0.00020367,2]
[406554191,1771937448046,-13753.9550686,0.00020368,2]
[406554192,1771937448057,-159.62910539,0.00020893,2]
[406554193,1771937448068,-490.95499564,0.000209,30]
[406554194,1771937448078,-400.0,0.00021,2]
[406554195,1771937448089,-500.0,0.00021001,7]
[406554196,1771937448099,-912.0,0.00021334,2]
[406554197,1771937448110,-912.0,0.00021443,2]
[406554198,1771937448120,-666.0,0.00021481,2]
[406554199,1771937448131,-912.0,0.00021529,2]
[406554200,1771937448142,-912.0,0.00021542,2]
[406554201,1771937448153,-912.0,0.00021612,2]
[406554202,1771937448163,-912.0,0.00021646,2]
[406554203,1771937448174,-912.0,0.00021671,2]
[406554204,1771937448184,-912.0,0.00021693,2]
[406554205,1771937448195,-912.0,0.00021762,2]
[406554206,1771937448205,-912.0,0.00021883,2]
[406554207,1771937448216,-151.0,0.00021918,2]
[406554208,1771937448227,-151.0,0.00021918,2]
[406554209,1771937448238,-150.0,0.00021945,3]
[406554210,1771937448249,-912.0,0.00022042,2]
[406554211,1771937448261,-912.0,0.00022158,2]
[406554212,1771937448271,-912.0,0.00022236,2]
[406554213,1771937448282,-912.0,0.00022245,2]
[406554214,1771937448293,-289.75484715,0.00022254,2]
[406554215,1771937448304,-912.0,0.00022406,2]
[406554216,1771937448315,-912.0,0.00022528,2]
[406554217,1771937448325,-912.0,0.00022534,2]
[406554218,1771937448335,-912.0,0.00022699,2]
[406554219,1771937448346,-549.94,0.00022734,2]
[406554220,1771937448357,-549.94,0.00022734,2]
[406554221,1771937448367,-657.39,0.00022734,2]
[406554222,1771937448378,-1423.69,0.00022734,2]
[406554223,1771937448388,-500.0,0.00022734,2]
[406554224,1771937448399,-295715.83468551,0.00022735,2]
[406554225,1771937448428,-361.4467977,0.00022735,2]
[406554226,1771937448627,353.498286,9.736e-05,2]
[406554227,1771937449120,-764.91495202,0.00022735,2]
[406554228,1771937449174,-631.77,0.00022735,2]
[406554229,1771937449709,-200.0,0.00016792,2]
[406554230,1771937449719,-1560.74692543,0.00022735,2]
[406554231,1771937449732,-250.0,0.00022735,2]
[406554232,1771937449755,-826.0,0.00022735,2]
[406554233,1771937449994,-10357.95087827,0.00022735,2]
[406554234,1771937450006,-525.91179918,0.00022735,2]
[406554235,1771937502192,-500.0,0.00010024,2]
[406554236,1771937517301,-500.0,0.00010123,2]
[406554237,1771937517328,-574.08388385,0.00010123,2]
[406554238,1771937517355,-500.0,0.00010123,2]
[406554239,1771937517381,-500.0,0.00010123,2]
[406554240,1771937517412,-500.0,0.00010123,2]
[406554241,1771937517438,-453.23638492,0.00010123,2]
[406554242,1771937517467,-625.95457302,0.00010123,2]